[Event "Titled Tuesday Blitz August 09 Early 2022"]
[White "Fernandez Siles, Luis"]
[Black "Djokic, Mihailo"]
[WhiteFideId "2209420"]
[BlackFideId "976440"]
[WhiteElo "2211"]
[BlackElo "2246"]
[Result "0-1"]
[Round "02"]
[TimeControl "180+1"]
[Date "2022.08.09"]
[WhiteClock "0:00:55"]
[BlackClock "0:01:37"]

1. e4 {[%clk 0:03:00]}  c5 {[%clk 0:02:59]} 2. Nf3 {[%clk 0:03:00]}  d6 {[%clk 0:03:00]} 3. Bb5+ {[%clk 0:03:00]}  Bd7 {[%clk 0:03:00]} 4. Bxd7+ {[%clk 0:03:00]}  Qxd7 {[%clk 0:03:01]} 5. O-O {[%clk 0:02:59]}  Nc6 {[%clk 0:03:02]} 6. c3 {[%clk 0:03:00]}  Nf6 {[%clk 0:03:02]} 7. Re1 {[%clk 0:03:00]}  e6 {[%clk 0:03:02]} 8. d4 {[%clk 0:03:00]}  cxd4 {[%clk 0:03:03]} 9. cxd4 {[%clk 0:03:01]}  d5 {[%clk 0:03:04]} 10. e5 {[%clk 0:03:01]}  Ne4 {[%clk 0:03:04]} 11. Nbd2 {[%clk 0:03:01]}  Nxd2 {[%clk 0:03:05]} 12. Bxd2 {[%clk 0:03:02]}  Bb4 {[%clk 0:03:05]} 13. Rc1 {[%clk 0:02:53]}  Bxd2 {[%clk 0:02:52]} 14. Qxd2 {[%clk 0:02:53]}  h6 {[%clk 0:02:53]} 15. Rc3 {[%clk 0:02:47]}  O-O {[%clk 0:02:52]} 16. h4 {[%clk 0:02:39]}  Rfc8 {[%clk 0:02:53]} 17. Nh2 {[%clk 0:02:37]}  Ne7 {[%clk 0:02:33]} 18. Rec1 {[%clk 0:01:59]}  Rxc3 {[%clk 0:02:32]} 19. Rxc3 {[%clk 0:02:00]}  Rc8 {[%clk 0:02:32]} 20. g4 {[%clk 0:01:52]}  Rxc3 {[%clk 0:02:27]} 21. Qxc3 {[%clk 0:01:53]}  Qc6 {[%clk 0:02:27]} 22. Qxc6 {[%clk 0:01:48]}  Nxc6 {[%clk 0:02:27]} 23. Nf3 {[%clk 0:01:48]}  f6 {[%clk 0:02:27]} 24. exf6 {[%clk 0:01:47]}  gxf6 {[%clk 0:02:28]} 25. h5 {[%clk 0:01:46]}  e5 {[%clk 0:02:28]} 26. dxe5 {[%clk 0:01:44]}  fxe5 {[%clk 0:02:28]} 27. Kf1 {[%clk 0:01:36]}  Kg7 {[%clk 0:02:28]} 28. Ke2 {[%clk 0:01:22]}  e4 {[%clk 0:02:17]} 29. Nd2 {[%clk 0:01:21]}  Kf6 {[%clk 0:02:13]} 30. f3 {[%clk 0:01:21]}  Nd4+ {[%clk 0:02:09]} 31. Ke3 {[%clk 0:01:21]}  Nxf3 {[%clk 0:02:09]} 32. Nxf3 {[%clk 0:01:21]}  exf3 {[%clk 0:02:10]} 33. Kxf3 {[%clk 0:01:21]}  Kg5 {[%clk 0:02:11]} 34. b4 {[%clk 0:01:14]}  b5 {[%clk 0:02:11]} 35. a3 {[%clk 0:01:13]}  d4 {[%clk 0:02:03]} 36. Ke4 {[%clk 0:01:12]}  Kxg4 {[%clk 0:01:57]} 37. Kxd4 {[%clk 0:01:13]}  Kxh5 {[%clk 0:01:57]} 38. Kc5 {[%clk 0:01:13]}  Kg4 {[%clk 0:01:58]} 39. Kxb5 {[%clk 0:01:13]}  h5 {[%clk 0:01:59]} 40. Ka6 {[%clk 0:01:14]}  h4 {[%clk 0:02:00]} 41. Kxa7 {[%clk 0:01:14]}  h3 {[%clk 0:02:01]} 42. b5 {[%clk 0:01:15]}  h2 {[%clk 0:02:02]} 43. b6 {[%clk 0:01:16]}  h1=Q {[%clk 0:02:02]} 44. b7 {[%clk 0:01:16]}  Qh7 {[%clk 0:01:54]} 45. Ka8 {[%clk 0:01:05]}  Qe4 {[%clk 0:01:53]} 46. Ka7 {[%clk 0:01:03]}  Qa4+ {[%clk 0:01:53]} 47. Kb6 {[%clk 0:01:03]}  Qb3+ {[%clk 0:01:52]} 48. Kc7 {[%clk 0:01:02]}  Qc4+ {[%clk 0:01:53]} 49. Kb6 {[%clk 0:01:01]}  Qd4+ {[%clk 0:01:50]} 50. Kc6 {[%clk 0:00:57]}  Qd8 {[%clk 0:01:48]} 51. a4 {[%clk 0:00:54]}  Qb8 {[%clk 0:01:36]} 52. a5 {[%clk 0:00:53]}  Qa7 {[%clk 0:01:36]} 53. Kc7 {[%clk 0:00:53]}  Qxa5+ {[%clk 0:01:36]} 54. Kc8 {[%clk 0:00:53]}  Qc5+ {[%clk 0:01:36]} 55. Kd7 {[%clk 0:00:54]}  Qb6 {[%clk 0:01:36]} 56. Kc8 {[%clk 0:00:54]}  Qc6+ {[%clk 0:01:36]} 57. Kb8 {[%clk 0:00:53]}  Kf5 {[%clk 0:01:36]} 58. Ka7 {[%clk 0:00:54]}  Qa4+ {[%clk 0:01:36]} 59. Kb6 {[%clk 0:00:55]}  Qb4+ {[%clk 0:01:36]} 60. Kc7 {[%clk 0:00:55]}  Qc5+ {[%clk 0:01:36]} 61. Kd7 {[%clk 0:00:55]}  Qb6 {[%clk 0:01:37]} 0-1


[Site "https://www.chess.com"]

[Event "Titled Tuesday Blitz August 09 Early 2022"]
[White "Flynn, Jacob"]
[Black "Averjanov, Alexey"]
[WhiteFideId "2509393"]
[BlackFideId "14109867"]
[WhiteElo "1920"]
[BlackElo "2650"]
[Result "0-1"]
[Round "02"]
[TimeControl "180+1"]
[Date "2022.08.09"]
[WhiteClock "0:02:11"]
[BlackClock "0:01:44"]

1. d4 {[%clk 0:03:00]}  d5 {[%clk 0:02:51]} 2. c4 {[%clk 0:03:01]}  dxc4 {[%clk 0:02:51]} 3. e3 {[%clk 0:02:59]}  Nf6 {[%clk 0:02:49]} 4. Bxc4 {[%clk 0:02:57]}  e6 {[%clk 0:02:49]} 5. Nf3 {[%clk 0:02:57]}  a6 {[%clk 0:02:49]} 6. O-O {[%clk 0:02:56]}  b5 {[%clk 0:02:50]} 7. Bb3 {[%clk 0:02:55]}  Bb7 {[%clk 0:02:46]} 8. Nc3 {[%clk 0:02:55]}  Nbd7 {[%clk 0:02:44]} 9. d5 {[%clk 0:02:55]}  Nc5 {[%clk 0:02:36]} 10. dxe6 {[%clk 0:02:54]}  Nxe6 {[%clk 0:02:26]} 11. Bxe6 {[%clk 0:02:53]}  fxe6 {[%clk 0:02:27]} 12. Ng5 {[%clk 0:02:43]}  Qxd1 {[%clk 0:02:21]} 13. Rxd1 {[%clk 0:02:44]}  Ke7 {[%clk 0:02:20]} 14. b3 {[%clk 0:02:41]}  c5 {[%clk 0:02:05]} 15. Ne2 {[%clk 0:02:31]}  h6 {[%clk 0:02:03]} 16. Nf3 {[%clk 0:02:22]}  Bxf3 {[%clk 0:02:02]} 17. gxf3 {[%clk 0:02:22]}  g5 {[%clk 0:01:53]} 18. Bb2 {[%clk 0:02:20]}  Bg7 {[%clk 0:01:53]} 19. Rac1 {[%clk 0:02:21]}  Rac8 {[%clk 0:01:51]} 20. f4 {[%clk 0:02:12]}  Nh5 {[%clk 0:01:46]} 21. fxg5 {[%clk 0:02:11]}  Bxb2 {[%clk 0:01:44]} 0-1


[Site "https://www.chess.com"]

[Event "Titled Tuesday Blitz August 09 Early 2022"]
[White "Gardezi, Arsal"]
[Black "Danielyan, Vahe"]
[WhiteFideId "30949521"]
[BlackFideId "13304828"]
[WhiteElo "1781"]
[BlackElo "2421"]
[Result "0-1"]
[Round "02"]
[TimeControl "180+1"]
[Date "2022.08.09"]
[WhiteClock "0:00:15"]
[BlackClock "0:00:26"]

1. d4 {[%clk 0:03:00]}  d5 {[%clk 0:02:59]} 2. c4 {[%clk 0:03:00]}  dxc4 {[%clk 0:03:00]} 3. Nc3 {[%clk 0:03:00]}  c6 {[%clk 0:02:52]} 4. e4 {[%clk 0:02:59]}  b5 {[%clk 0:02:52]} 5. a4 {[%clk 0:02:54]}  Qb6 {[%clk 0:02:48]} 6. Be3 {[%clk 0:02:53]}  Qb7 {[%clk 0:02:45]} 7. b3 {[%clk 0:02:35]}  b4 {[%clk 0:02:41]} 8. Na2 {[%clk 0:02:31]}  c3 {[%clk 0:02:41]} 9. Nf3 {[%clk 0:02:25]}  Nf6 {[%clk 0:02:40]} 10. Qc2 {[%clk 0:02:22]}  Bg4 {[%clk 0:02:35]} 11. Bc4 {[%clk 0:02:19]}  Bxf3 {[%clk 0:02:35]} 12. gxf3 {[%clk 0:02:18]}  e6 {[%clk 0:02:36]} 13. Rg1 {[%clk 0:02:15]}  a5 {[%clk 0:02:36]} 14. Nc1 {[%clk 0:02:14]}  Nbd7 {[%clk 0:02:35]} 15. Nd3 {[%clk 0:02:13]}  Nb6 {[%clk 0:02:36]} 16. Ne5 {[%clk 0:02:10]}  Nfd7 {[%clk 0:02:29]} 17. Nxd7 {[%clk 0:01:59]}  Qxd7 {[%clk 0:02:30]} 18. Bd3 {[%clk 0:01:58]}  g6 {[%clk 0:02:29]} 19. O-O-O {[%clk 0:01:55]}  Qc7 {[%clk 0:02:13]} 20. Be2 {[%clk 0:01:52]}  Bd6 {[%clk 0:02:04]} 21. h4 {[%clk 0:01:46]}  Bf4 {[%clk 0:01:57]} 22. Kb1 {[%clk 0:01:44]}  Bxe3 {[%clk 0:01:56]} 23. fxe3 {[%clk 0:01:44]}  h5 {[%clk 0:01:54]} 24. f4 {[%clk 0:01:44]}  O-O-O {[%clk 0:01:54]} 25. Rg5 {[%clk 0:01:38]}  Nd7 {[%clk 0:01:44]} 26. f5 {[%clk 0:01:35]}  gxf5 {[%clk 0:01:42]} 27. exf5 {[%clk 0:01:36]}  e5 {[%clk 0:01:43]} 28. Bxh5 {[%clk 0:01:28]}  exd4 {[%clk 0:01:40]} 29. exd4 {[%clk 0:01:29]}  Nf6 {[%clk 0:01:40]} 30. Bxf7 {[%clk 0:01:29]}  Qxf7 {[%clk 0:01:39]} 31. Rdg1 {[%clk 0:01:18]}  Rxh4 {[%clk 0:01:34]} 32. Rg7 {[%clk 0:01:17]}  Qd5 {[%clk 0:01:35]} 33. R1g6 {[%clk 0:01:04]}  Rh1+ {[%clk 0:01:29]} 34. Ka2 {[%clk 0:01:04]}  Qd6 {[%clk 0:01:25]} 35. Qd3 {[%clk 0:00:51]}  Rh2+ {[%clk 0:01:19]} 36. Ka1 {[%clk 0:00:50]}  Rh1+ {[%clk 0:01:13]} 37. Ka2 {[%clk 0:00:49]}  c5 {[%clk 0:00:34]} 38. Qf3 {[%clk 0:00:47]}  Rh2+ {[%clk 0:00:26]} 39. Ka1 {[%clk 0:00:46]}  Qd5 {[%clk 0:00:26]} 40. Qxd5 {[%clk 0:00:15]}  Rxd5 {[%clk 0:00:25]} 41. Rxf6 {[%clk 0:00:15]}  Rxd4 {[%clk 0:00:26]} 42. Rf8+ {[%clk 0:00:15]}  Rd8 {[%clk 0:00:26]} 43. Rff7 {[%clk 0:00:15]}  Rd1# {[%clk 0:00:26]} 0-1


[Site "https://www.chess.com"]

[Event "Titled Tuesday Blitz August 09 Early 2022"]
[White "Gatterer, Florian"]
[Black "Ferreira, Vitor Hugo Vieira"]
[WhiteFideId "811688"]
[BlackFideId "2119765"]
[WhiteElo "2218"]
[BlackElo "2168"]
[Result "1-0"]
[Round "02"]
[TimeControl "180+1"]
[Date "2022.08.09"]
[WhiteClock "0:01:16"]
[BlackClock "0:00:35"]

1. c4 {[%clk 0:03:00]}  c6 {[%clk 0:02:55]} 2. Nf3 {[%clk 0:02:59]}  d5 {[%clk 0:02:54]} 3. e3 {[%clk 0:03:00]}  Nf6 {[%clk 0:02:54]} 4. Nc3 {[%clk 0:02:59]}  e6 {[%clk 0:02:54]} 5. b3 {[%clk 0:03:00]}  Nbd7 {[%clk 0:02:54]} 6. Bb2 {[%clk 0:02:58]}  Bd6 {[%clk 0:02:54]} 7. Qc2 {[%clk 0:02:58]}  O-O {[%clk 0:02:54]} 8. g4 {[%clk 0:02:51]}  Qe7 {[%clk 0:02:37]} 9. g5 {[%clk 0:02:50]}  Ne8 {[%clk 0:02:37]} 10. h4 {[%clk 0:02:50]}  Ba3 {[%clk 0:02:36]} 11. O-O-O {[%clk 0:02:48]}  Bxb2+ {[%clk 0:02:36]} 12. Kxb2 {[%clk 0:02:48]}  dxc4 {[%clk 0:02:33]} 13. Bxc4 {[%clk 0:02:44]}  Nd6 {[%clk 0:02:32]} 14. Bd3 {[%clk 0:02:43]}  g6 {[%clk 0:02:13]} 15. h5 {[%clk 0:02:35]}  Nc5 {[%clk 0:02:13]} 16. Be2 {[%clk 0:02:33]}  e5 {[%clk 0:02:11]} 17. d4 {[%clk 0:02:26]}  Bf5 {[%clk 0:02:08]} 18. Qc1 {[%clk 0:02:13]}  exd4 {[%clk 0:01:58]} 19. Nxd4 {[%clk 0:02:11]}  Nce4 {[%clk 0:01:59]} 20. Nxf5 {[%clk 0:02:01]}  Nxf5 {[%clk 0:02:00]} 21. hxg6 {[%clk 0:02:00]}  hxg6 {[%clk 0:01:56]} 22. Nxe4 {[%clk 0:01:38]}  Qxe4 {[%clk 0:01:55]} 23. Qc3 {[%clk 0:01:36]}  Ng7 {[%clk 0:01:05]} 24. Rh2 {[%clk 0:01:32]}  Rfe8 {[%clk 0:00:53]} 25. Rdh1 {[%clk 0:01:24]}  f5 {[%clk 0:00:34]} 26. Rh8+ {[%clk 0:01:16]}  Kf7 {[%clk 0:00:35]} 27. Qf6# {[%clk 0:01:16]} 1-0


[Site "https://www.chess.com"]

[Event "Titled Tuesday Blitz August 09 Early 2022"]
[White "Gombocz, Ferenc Jr."]
[Black "Altman, Joshua"]
[WhiteFideId "775029"]
[BlackFideId "426210"]
[WhiteElo "1913"]
[BlackElo "1945"]
[Result "0-1"]
[Round "02"]
[TimeControl "180+1"]
[Date "2022.08.09"]
[WhiteClock "0:00:10"]
[BlackClock "0:00:09"]

1. c4 {[%clk 0:03:00]}  e5 {[%clk 0:02:59]} 2. g3 {[%clk 0:03:01]}  Nc6 {[%clk 0:02:59]} 3. Bg2 {[%clk 0:03:01]}  Nf6 {[%clk 0:02:59]} 4. Nc3 {[%clk 0:03:01]}  Bc5 {[%clk 0:02:59]} 5. e3 {[%clk 0:03:01]}  O-O {[%clk 0:02:59]} 6. Nf3 {[%clk 0:03:01]}  d6 {[%clk 0:02:59]} 7. O-O {[%clk 0:03:00]}  h6 {[%clk 0:02:59]} 8. d4 {[%clk 0:03:00]}  exd4 {[%clk 0:02:58]} 9. exd4 {[%clk 0:03:01]}  Bb6 {[%clk 0:02:58]} 10. h3 {[%clk 0:03:00]}  a6 {[%clk 0:02:58]} 11. Be3 {[%clk 0:02:59]}  Rb8 {[%clk 0:02:58]} 12. a3 {[%clk 0:02:59]}  Ne7 {[%clk 0:02:52]} 13. b4 {[%clk 0:02:56]}  c6 {[%clk 0:02:51]} 14. c5 {[%clk 0:02:46]}  Bc7 {[%clk 0:02:48]} 15. Re1 {[%clk 0:02:37]}  Be6 {[%clk 0:02:48]} 16. Qc2 {[%clk 0:02:34]}  Qd7 {[%clk 0:02:40]} 17. Kh2 {[%clk 0:02:31]}  Rbe8 {[%clk 0:02:40]} 18. Rad1 {[%clk 0:02:29]}  Ng6 {[%clk 0:02:36]} 19. Nd2 {[%clk 0:02:14]}  d5 {[%clk 0:02:34]} 20. f4 {[%clk 0:01:51]}  Bf5 {[%clk 0:02:28]} 21. Qb2 {[%clk 0:01:50]}  h5 {[%clk 0:02:25]} 22. Nf3 {[%clk 0:01:43]}  h4 {[%clk 0:02:16]} 23. Nxh4 {[%clk 0:01:32]}  Nxh4 {[%clk 0:02:14]} 24. gxh4 {[%clk 0:01:32]}  Rxe3 {[%clk 0:02:12]} 25. Rxe3 {[%clk 0:01:27]}  Bxf4+ {[%clk 0:02:12]} 26. Rg3 {[%clk 0:01:27]}  Bxg3+ {[%clk 0:01:49]} 27. Kxg3 {[%clk 0:01:26]}  Qc7+ {[%clk 0:01:49]} 28. Kf2 {[%clk 0:01:22]}  Qf4+ {[%clk 0:01:47]} 29. Kg1 {[%clk 0:01:18]}  Qxh4 {[%clk 0:01:46]} 30. Qf2 {[%clk 0:01:13]}  Qg5 {[%clk 0:01:44]} 31. Kh2 {[%clk 0:01:02]}  Re8 {[%clk 0:01:40]} 32. Rg1 {[%clk 0:00:53]}  Qh5 {[%clk 0:01:22]} 33. Qg3 {[%clk 0:00:19]}  Re3 {[%clk 0:01:05]} 34. Bf3 {[%clk 0:00:19]}  Qxh3+ {[%clk 0:00:54]} 35. Qxh3 {[%clk 0:00:17]}  Bxh3 {[%clk 0:00:54]} 36. Rg3 {[%clk 0:00:13]}  Rxc3 {[%clk 0:00:49]} 37. Rxh3 {[%clk 0:00:10]}  Rxa3 {[%clk 0:00:46]} 38. Kg3 {[%clk 0:00:07]}  Ne4+ {[%clk 0:00:44]} 39. Kf4 {[%clk 0:00:04]}  Nd2 {[%clk 0:00:39]} 40. Bg2 {[%clk 0:00:03]}  Rxh3 {[%clk 0:00:38]} 41. Bxh3 {[%clk 0:00:04]}  Nb3 {[%clk 0:00:35]} 42. Bc8 {[%clk 0:00:04]}  Nxd4 {[%clk 0:00:34]} 43. Bxb7 {[%clk 0:00:05]}  Kf8 {[%clk 0:00:15]} 44. Bxa6 {[%clk 0:00:05]}  Ke7 {[%clk 0:00:15]} 45. Ke3 {[%clk 0:00:05]}  Ne6 {[%clk 0:00:12]} 46. Bd3 {[%clk 0:00:04]}  Kd7 {[%clk 0:00:12]} 47. Kf3 {[%clk 0:00:04]}  Kc7 {[%clk 0:00:13]} 48. Kg4 {[%clk 0:00:04]}  Nd4 {[%clk 0:00:10]} 49. Kg5 {[%clk 0:00:04]}  Nf3+ {[%clk 0:00:09]} 50. Kf4 {[%clk 0:00:03]}  Ne1 {[%clk 0:00:07]} 51. Bb1 {[%clk 0:00:03]}  Ng2+ {[%clk 0:00:05]} 52. Kf3 {[%clk 0:00:03]}  Nh4+ {[%clk 0:00:05]} 53. Kg4 {[%clk 0:00:02]}  Ng6 {[%clk 0:00:06]} 54. Kf5 {[%clk 0:00:02]}  Ne7+ {[%clk 0:00:06]} 55. Ke5 {[%clk 0:00:02]}  Kd7 {[%clk 0:00:06]} 56. Kf4 {[%clk 0:00:02]}  f6 {[%clk 0:00:06]} 57. Kg4 {[%clk 0:00:02]}  g5 {[%clk 0:00:06]} 58. Kg3 {[%clk 0:00:02]}  Ke6 {[%clk 0:00:07]} 59. Kf3 {[%clk 0:00:03]}  Ke5 {[%clk 0:00:07]} 60. Bd3 {[%clk 0:00:04]}  Nc8 {[%clk 0:00:07]} 61. Be2 {[%clk 0:00:04]}  d4 {[%clk 0:00:07]} 62. b5 {[%clk 0:00:05]}  cxb5 {[%clk 0:00:07]} 63. Bxb5 {[%clk 0:00:05]}  Kd5 {[%clk 0:00:07]} 64. c6 {[%clk 0:00:06]}  Na7 {[%clk 0:00:07]} 65. Ba4 {[%clk 0:00:07]}  Nxc6 {[%clk 0:00:07]} 66. Kg4 {[%clk 0:00:08]}  Ne5+ {[%clk 0:00:07]} 67. Kf5 {[%clk 0:00:08]}  d3 {[%clk 0:00:07]} 68. Kxf6 {[%clk 0:00:09]}  g4 {[%clk 0:00:08]} 69. Kg5 {[%clk 0:00:09]}  g3 {[%clk 0:00:08]} 70. Kf4 {[%clk 0:00:09]}  g2 {[%clk 0:00:09]} 71. Bd1 {[%clk 0:00:10]}  g1=Q {[%clk 0:00:09]} 0-1


[Site "https://www.chess.com"]

[Event "Titled Tuesday Blitz August 09 Early 2022"]
[White "Hua, Lefong"]
[Black "Seliverstov, Vladimir"]
[WhiteFideId "2602253"]
[BlackFideId "4192036"]
[WhiteElo "2601"]
[BlackElo "2489"]
[Result "0-1"]
[Round "02"]
[TimeControl "180+1"]
[Date "2022.08.09"]
[WhiteClock "0:00:07"]
[BlackClock "0:00:12"]

1. d4 {[%clk 0:03:00]}  d5 {[%clk 0:02:59]} 2. c4 {[%clk 0:03:01]}  c6 {[%clk 0:02:58]} 3. Nf3 {[%clk 0:03:00]}  Nf6 {[%clk 0:02:57]} 4. Nc3 {[%clk 0:03:00]}  dxc4 {[%clk 0:02:57]} 5. a4 {[%clk 0:02:59]}  Bg4 {[%clk 0:02:57]} 6. Ne5 {[%clk 0:02:59]}  Bh5 {[%clk 0:02:58]} 7. Nxc4 {[%clk 0:02:55]}  e6 {[%clk 0:02:57]} 8. f3 {[%clk 0:02:54]}  Bb4 {[%clk 0:02:58]} 9. e3 {[%clk 0:02:46]}  c5 {[%clk 0:02:51]} 10. Qb3 {[%clk 0:02:35]}  Nc6 {[%clk 0:02:44]} 11. dxc5 {[%clk 0:02:30]}  O-O {[%clk 0:02:44]} 12. Be2 {[%clk 0:02:27]}  Bxc5 {[%clk 0:02:40]} 13. O-O {[%clk 0:02:25]}  Nd5 {[%clk 0:02:34]} 14. Rd1 {[%clk 0:02:07]}  Re8 {[%clk 0:02:05]} 15. Kh1 {[%clk 0:01:56]}  Qh4 {[%clk 0:02:02]} 16. Qxb7 {[%clk 0:01:33]}  Nxc3 {[%clk 0:01:34]} 17. bxc3 {[%clk 0:01:32]}  Qf2 {[%clk 0:01:34]} 18. Qxc6 {[%clk 0:01:17]}  Qxe2 {[%clk 0:01:31]} 19. Ba3 {[%clk 0:01:09]}  Rec8 {[%clk 0:01:13]} 20. Qe4 {[%clk 0:00:51]}  Bg6 {[%clk 0:01:12]} 21. Qf4 {[%clk 0:00:41]}  Bxa3 {[%clk 0:01:10]} 22. Nxa3 {[%clk 0:00:41]}  Rxc3 {[%clk 0:01:09]} 23. Nb5 {[%clk 0:00:33]}  Qxe3 {[%clk 0:00:38]} 24. Qd6 {[%clk 0:00:26]}  Rcc8 {[%clk 0:00:36]} 25. Nc7 {[%clk 0:00:22]}  Rab8 {[%clk 0:00:34]} 26. Na6 {[%clk 0:00:20]}  Ra8 {[%clk 0:00:26]} 27. Nc7 {[%clk 0:00:20]}  h5 {[%clk 0:00:18]} 28. Nxa8 {[%clk 0:00:19]}  Rxa8 {[%clk 0:00:18]} 29. Qd4 {[%clk 0:00:16]}  Qg5 {[%clk 0:00:17]} 30. h4 {[%clk 0:00:16]}  Qg3 {[%clk 0:00:17]} 31. Rd2 {[%clk 0:00:16]}  Rc8 {[%clk 0:00:17]} 32. Qf2 {[%clk 0:00:16]}  Qf4 {[%clk 0:00:16]} 33. Rd4 {[%clk 0:00:15]}  Qe5 {[%clk 0:00:16]} 34. Rad1 {[%clk 0:00:15]}  Rc2 {[%clk 0:00:15]} 35. Rd8+ {[%clk 0:00:14]}  Kh7 {[%clk 0:00:16]} 36. R8d2 {[%clk 0:00:15]}  Rc4 {[%clk 0:00:15]} 37. Rd4 {[%clk 0:00:15]}  Rc2 {[%clk 0:00:15]} 38. R4d2 {[%clk 0:00:15]}  Rc4 {[%clk 0:00:15]} 39. Rd4 {[%clk 0:00:16]}  Rc3 {[%clk 0:00:15]} 40. g3 {[%clk 0:00:14]}  a5 {[%clk 0:00:15]} 41. Kg2 {[%clk 0:00:14]}  Qf6 {[%clk 0:00:14]} 42. R1d2 {[%clk 0:00:14]}  Ra3 {[%clk 0:00:14]} 43. Rf4 {[%clk 0:00:14]}  Qa1 {[%clk 0:00:14]} 44. Qd4 {[%clk 0:00:13]}  Qe1 {[%clk 0:00:12]} 45. Qf2 {[%clk 0:00:11]}  Qa1 {[%clk 0:00:11]} 46. Qd4 {[%clk 0:00:11]}  Qc1 {[%clk 0:00:12]} 47. g4 {[%clk 0:00:10]}  Ra1 {[%clk 0:00:12]} 48. g5 {[%clk 0:00:07]}  Qh1+ {[%clk 0:00:12]} 49. Kf2 {[%clk 0:00:07]}  Qg1+ {[%clk 0:00:12]} 50. Ke2 {[%clk 0:00:07]}  Re1# {[%clk 0:00:12]} 0-1


[Site "https://www.chess.com"]

[Event "Titled Tuesday Blitz August 09 Early 2022"]
[White "Ianov, Viktor"]
[Black "McConnell, Griffin"]
[WhiteFideId "14102730"]
[BlackFideId "30942551"]
[WhiteElo "2152"]
[BlackElo "2295"]
[Result "0-1"]
[Round "02"]
[TimeControl "180+1"]
[Date "2022.08.09"]
[WhiteClock "0:00:01"]
[BlackClock "0:00:03"]

1. Nf3 {[%clk 0:03:00]}  Nf6 {[%clk 0:02:58]} 2. g3 {[%clk 0:03:00]}  d5 {[%clk 0:02:58]} 3. Bg2 {[%clk 0:02:59]}  c6 {[%clk 0:02:58]} 4. O-O {[%clk 0:02:59]}  g6 {[%clk 0:02:58]} 5. b3 {[%clk 0:02:58]}  Bg7 {[%clk 0:02:58]} 6. Bb2 {[%clk 0:02:59]}  O-O {[%clk 0:02:59]} 7. c4 {[%clk 0:02:58]}  Nbd7 {[%clk 0:02:56]} 8. d3 {[%clk 0:02:58]}  e6 {[%clk 0:02:57]} 9. Nbd2 {[%clk 0:02:58]}  a6 {[%clk 0:02:53]} 10. Qc2 {[%clk 0:02:58]}  b5 {[%clk 0:02:53]} 11. Rfd1 {[%clk 0:02:57]}  Bb7 {[%clk 0:02:53]} 12. Rac1 {[%clk 0:02:57]}  c5 {[%clk 0:02:52]} 13. e4 {[%clk 0:02:53]}  d4 {[%clk 0:02:51]} 14. Rf1 {[%clk 0:02:44]}  b4 {[%clk 0:02:47]} 15. a4 {[%clk 0:02:42]}  a5 {[%clk 0:02:41]} 16. Ne1 {[%clk 0:02:41]}  Ne8 {[%clk 0:02:35]} 17. f4 {[%clk 0:02:38]}  f5 {[%clk 0:02:35]} 18. Nef3 {[%clk 0:02:37]}  e5 {[%clk 0:02:31]} 19. Ng5 {[%clk 0:02:24]}  Qe7 {[%clk 0:02:21]} 20. Rce1 {[%clk 0:02:18]}  h6 {[%clk 0:02:12]} 21. Nh3 {[%clk 0:02:17]}  Qd6 {[%clk 0:02:02]} 22. exf5 {[%clk 0:02:11]}  Bxg2 {[%clk 0:01:59]} 23. Kxg2 {[%clk 0:02:10]}  Qc6+ {[%clk 0:01:47]} 24. Nf3 {[%clk 0:02:02]}  gxf5 {[%clk 0:01:46]} 25. Kg1 {[%clk 0:01:52]}  e4 {[%clk 0:01:36]} 26. dxe4 {[%clk 0:01:41]}  d3 {[%clk 0:01:36]} 27. Qd2 {[%clk 0:01:31]}  fxe4 {[%clk 0:01:31]} 28. Bxg7 {[%clk 0:01:30]}  Kxg7 {[%clk 0:01:30]} 29. Nh4 {[%clk 0:01:29]}  Nd6 {[%clk 0:01:24]} 30. f5 {[%clk 0:01:23]}  Ne5 {[%clk 0:00:54]} 31. Nf4 {[%clk 0:01:15]}  Kh7 {[%clk 0:00:35]} 32. Ne6 {[%clk 0:01:05]}  Rf6 {[%clk 0:00:32]} 33. Qf4 {[%clk 0:01:01]}  Nef7 {[%clk 0:00:27]} 34. Qg4 {[%clk 0:00:50]}  Rg8 {[%clk 0:00:26]} 35. Qh5 {[%clk 0:00:48]}  Ng5 {[%clk 0:00:22]} 36. Nxg5+ {[%clk 0:00:06]}  Rxg5 {[%clk 0:00:21]} 37. Qd1 {[%clk 0:00:06]}  Nxf5 {[%clk 0:00:17]} 38. Nxf5 {[%clk 0:00:03]}  Rgxf5 {[%clk 0:00:16]} 39. Rxf5 {[%clk 0:00:03]}  Rxf5 {[%clk 0:00:16]} 40. Qg4 {[%clk 0:00:02]}  Re5 {[%clk 0:00:08]} 41. Qf4 {[%clk 0:00:01]}  Qe6 {[%clk 0:00:07]} 42. Qe3 {[%clk 0:00:01]}  Qe7 {[%clk 0:00:04]} 43. Rf1 {[%clk 0:00:01]}  Qg5 {[%clk 0:00:03]} 0-1


[Site "https://www.chess.com"]